[Event "12th Philadelphia Open"]
[Site "Philadelphia"]
[Date "2018.03.30"]
[Round "4.4"]
[White "Mulyar, Michael"]
[Black "Burke, John M"]
[Result "1/2-1/2"]
[ECO "D41"]
[WhiteElo "2396"]
[BlackElo "2525"]
[PlyCount "89"]
[EventDate "2018.03.??"]
[EventType "swiss"]
[EventRounds "9"]
[EventCountry "USA"]
[TimeControl "5400+30"]
[WhiteClock "0:15:03"]
[BlackClock "0:58:42"]

1. d4 {[%emt 0:00:00]} Nf6 {[%emt 0:00:00]} 2. Nf3 {[%emt 0:00:00]} d5 {
[%emt 0:00:00]} 3. c4 {[%emt 0:00:00]} e6 {[%emt 0:00:00]} 4. Nc3 {[%emt 0:00:
00]} c5 {[%emt 0:00:00]} 5. cxd5 Nxd5 {[%emt 0:00:00]} 6. e4 {[%emt 0:00:00]}
Nxc3 {[%emt 0:00:00]} 7. bxc3 {[%emt 0:00:00]} cxd4 {[%emt 0:00:00]} 8. cxd4 {
[%emt 0:00:00]} Bb4+ {[%emt 0:00:00]} 9. Bd2 {[%emt 0:00:00]} Bxd2+ {[%emt 0:
00:00]} 10. Qxd2 {[%emt 0:00:00]} O-O {[%emt 0:00:00]} 11. Bc4 {[%emt 0:00:00]}
Nd7 {[%emt 0:00:00]} 12. O-O {[%emt 0:00:00]} b6 {[%emt 0:00:00]} 13. Rfe1 {
[%emt 0:00:00]} Bb7 {[%emt 0:00:00]} 14. Rad1 {[%emt 0:00:00]} Rc8 {[%emt 0:00:
00]} 15. Bb3 {[%emt 0:00:00]} Re8 {[%emt 0:00:00]} 16. h3 {[%emt 0:00:00]} Nf6
{[%emt 0:00:00]} 17. Qf4 {[%emt 0:00:00]} Nh5 {[%emt 0:07:21]} 18. Qh2 {
[%emt 0:02:30]} Nf6 {[%emt 0:16:02]} 19. d5 {[%emt 0:11:27]} exd5 {[%emt 0:00:
59]} 20. e5 {[%emt 0:00:30]} Nd7 {[%emt 0:02:00]} 21. Nd4 {[%emt 0:28:05]} f6 {
[%emt 0:03:34]} 22. e6 {[%emt 0:14:03]} Nc5 {[%emt 0:02:05]} 23. Nf5 {[%emt 0:
06:24]} Nxb3 {[%emt 0:10:23]} 24. axb3 {[%emt 0:01:24]} Rc6 {[%emt 0:00:56]}
25. Qg3 {[%emt 0:09:34]} Qc7 {[%emt 0:03:10]} 26. Qxc7 {[%emt 0:06:59]} Rxc7 {
[%emt 0:00:30]} 27. Nd6 {[%emt 0:10:04]} Ree7 {[%emt 0:00:30]} 28. Nf5 {
[%emt 0:04:07]} Re8 {[%emt 0:00:31]} 29. Nd6 {[%emt 0:00:30]} Ree7 {[%emt 0:00:
30]} 30. f4 {[%emt 0:01:46]} g6 {[%emt 0:03:18]} 31. g4 {[%emt 0:02:44]} Bc8 {
[%emt 0:01:46]} 32. f5 {[%emt 0:01:03]} gxf5 {[%emt 0:05:27]} 33. gxf5 {
[%emt 0:00:30]} Rc2 {[%emt 0:03:51]} 34. Rc1 {[%emt 0:02:10]} Rxc1 {[%emt 0:00:
31]} 35. Rxc1 {[%emt 0:00:30]} Bxe6 {[%emt 0:00:30]} 36. fxe6 {[%emt 0:01:00]}
Rxe6 {[%emt 0:00:30]} 37. Nf5 {[%emt 0:00:31]} Re5 {[%emt 0:06:25]} 38. Rc8+ {
[%emt 0:00:30]} Kf7 {[%emt 0:00:30]} 39. Rc7+ {[%emt 0:00:30]} Kf8 {[%emt 0:01:
43]} 40. Rc8+ {[%emt 0:01:31]} Kf7 {[%emt 0:00:51]} 41. Rc7+ {[%emt 0:00:30]}
Kf8 {[%emt 0:00:30]} 42. Nd6 {[%emt 0:00:00]} d4 {[%emt 0:00:00]} 43. Rxa7 {
[%emt 0:00:00]} d3 {[%emt 0:00:00]} 44. Nc4 {[%emt 0:00:00]} Re2 {[%emt 0:00:
00]} 45. Rd7 {[%emt 0:00:00]} 1/2-1/2

[Event "12th Philadelphia Open"]
[Site "Philadelphia"]
[Date "2018.03.30"]
[Round "5"]
[White "Goletiani, Rusudan"]
[Black "Warusawitharana, Missaka"]
[Result "1/2-1/2"]
[ECO "A14"]
[WhiteElo "2306"]
[BlackElo "2024"]
[PlyCount "81"]
[EventDate "2018.03.??"]
[EventType "swiss"]
[EventRounds "9"]
[EventCountry "USA"]
[TimeControl "5400+30"]

1. c4 e6 2. g3 Nf6 3. Bg2 d5 4. Nf3 Be7 5. O-O O-O 6. b3 c5 7. cxd5 Nxd5 8. Bb2
Nc6 9. Nc3 Nxc3 10. Bxc3 Qc7 11. Rc1 e5 12. d3 Be6 13. Qd2 f6 14. Nh4 a5 15. f4
exf4 16. gxf4 a4 17. Qe3 Qd7 18. Qg3 axb3 19. axb3 Ra3 20. f5 Bxb3 21. Ng6 hxg6
22. fxg6 Qe6 23. Bh3 Qxe2 24. Bg4 Bd6 25. Bxe2 Bxg3 26. hxg3 Bd5 27. Rfe1 Re8
28. Bf3 Rxe1+ 29. Rxe1 Kf8 30. Bxd5 Rxc3 31. Be4 Nd4 32. Ra1 f5 33. Bxb7 Rxd3
34. Kf2 Rb3 35. Ra7 Rb6 36. Bd5 Rxg6 37. Rf7+ Ke8 38. Rc7 Ne6 39. Bxe6 Rxe6 40.
Rxc5 g6 41. Kf3 1/2-1/2

[Event "12th Philadelphia Open"]
[Site "Philadelphia"]
[Date "2018.03.30"]
[Round "5"]
[White "Guo, Arthur"]
[Black "Oberoi, Shelev"]
[Result "1-0"]
[ECO "C78"]
[WhiteElo "2208"]
[BlackElo "1924"]
[PlyCount "51"]
[EventDate "2018.03.??"]
[EventType "swiss"]
[EventRounds "9"]
[EventCountry "USA"]
[TimeControl "5400+30"]

1. e4 e5 2. Nf3 Nc6 3. Bb5 a6 4. Ba4 Nf6 5. O-O b5 6. Bb3 Bb7 7. d3 Bc5 8. Nc3
d6 9. a4 Na5 10. Ba2 b4 11. Ne2 O-O 12. Be3 Bxe3 13. fxe3 d5 14. exd5 Bxd5 15.
Bxd5 Qxd5 16. Ng3 Rae8 17. Ng5 Nd7 18. Qg4 f6 19. Nf3 b3 20. c3 Qe6 21. Nf5 g6
22. N3h4 Kf7 23. Qh3 gxf5 24. Nxf5 Rh8 25. Qh5+ Kg8 26. Qg5+ 1-0

[Event "12th Philadelphia Open"]
[Site "Philadelphia"]
[Date "2018.03.30"]
[Round "5"]
[White "Hong, Andrew"]
[Black "Tang, Andrew"]
[Result "1-0"]
[ECO "C79"]
[WhiteElo "2365"]
[BlackElo "2509"]
[PlyCount "112"]
[EventDate "2018.03.??"]
[EventType "swiss"]
[EventRounds "9"]
[EventCountry "USA"]
[TimeControl "5400+30"]

1. e4 e5 2. Nf3 Nc6 3. Bb5 a6 4. Ba4 Nf6 5. O-O d6 6. Bxc6+ bxc6 7. d4 exd4 8.
Nxd4 c5 9. Nc6 Qd7 10. Na5 Qa4 11. Bd2 Bg4 12. f3 Be6 13. c4 Qd7 14. Nc3 c6 15.
f4 Qc7 16. Qa4 Rc8 17. Nd5 Nxd5 18. exd5 Bd7 19. Rae1+ Be7 20. Nxc6 Bxc6 21.
dxc6 Qxc6 22. Qd1 Qd7 23. f5 O-O 24. Bc3 Rfe8 25. Re3 Bg5 26. Rg3 f6 27. Rd3
Rcd8 28. Qf3 Qa4 29. Qd5+ Kf8 30. Rg3 h6 31. Rg4 Qc2 32. h4 Be3+ 33. Kh2 h5 34.
Bxf6 hxg4 35. Bxd8 Rxd8 36. f6 Qg6 37. Qe6 Qe8 38. Qe7+ Qxe7 39. fxe7+ Kxe7 40.
Re1 Kf6 41. Rxe3 a5 42. Rd3 Ke6 43. Kg3 d5 44. Rxd5 Rxd5 45. cxd5+ Kxd5 46.
Kxg4 Kd4 47. Kf5 a4 48. g4 a3 49. b3 Kc3 50. Ke4 Kb2 51. Kd3 Kxa2 52. Kc2 Ka1
53. h5 a2 54. g5 c4 55. b4 g6 56. b5 gxh5 1-0

[Event "12th Philadelphia Open"]
[Site "Philadelphia"]
[Date "2018.03.30"]
[Round "5"]
[White "Li, Ruifeng"]
[Black "Shen, Christopher"]
[Result "1-0"]
[ECO "C00"]
[WhiteElo "2585"]
[BlackElo "2276"]
[PlyCount "155"]
[EventDate "2018.03.??"]
[EventType "swiss"]
[EventRounds "9"]
[EventCountry "USA"]
[TimeControl "5400+30"]

1. e4 e6 2. d3 d5 3. Nd2 Nf6 4. Ngf3 dxe4 5. dxe4 Bc5 6. h3 e5 7. Bc4 O-O 8.
O-O Nc6 9. c3 a5 10. a4 h6 11. Re1 Qe7 12. Nf1 Be6 13. Qb3 Bxc4 14. Qxc4 Bb6
15. Be3 Nd7 16. Ng3 Bxe3 17. Rxe3 g6 18. h4 Nb6 19. Qe2 Rad8 20. h5 Kh7 21. Rd3
Rxd3 22. Qxd3 Rd8 23. Qb5 Qe6 24. b3 Qd6 25. Re1 Qd3 26. Re3 Qd6 27. Kh2 Qe7
28. Re1 Qd6 29. Rc1 Qa3 30. Ne2 Qe7 31. hxg6+ fxg6 32. c4 Rf8 33. Rd1 g5 34.
Kg1 g4 35. Nh2 Rd8 36. Rxd8 Qxd8 37. c5 Na7 38. Qxa5 Nc6 39. Qe1 Nd7 40. Nxg4
Qg5 41. Ne3 Nxc5 42. Ng3 Nxb3 43. Nd5 Qc1 44. Qxc1 Nxc1 45. Nxc7 Nd3 46. Nd5
Nc5 47. Nb6 Nb4 48. f3 Nbd3 49. Nf5 Nb2 50. Nd6 Nbxa4 51. Nxa4 Nxa4 52. Nxb7
Nb6 53. Kf2 Kg6 54. Nc5 Kg5 55. Nd3 Nc4 56. g3 Kf6 57. Ne1 h5 58. Ng2 Nd6 59.
Nh4 Kg5 60. Ke2 Kf6 61. Ke3 Nc4+ 62. Kd3 Nd6 63. f4 exf4 64. gxf4 Nf7 65. Kd4
Ke6 66. e5 Nh6 67. Ke4 Ng4 68. f5+ Ke7 69. Kf4 Kf7 70. Ng6 Nf2 71. Kg5 Ne4+ 72.
Kxh5 Ng3+ 73. Kg4 Ne4 74. Kf4 Nc5 75. Ke3 Nb3 76. Ke4 Nc5+ 77. Kd5 Nd3 78. Kd6
1-0

[Event "12th Philadelphia Open"]
[Site "Philadelphia"]
[Date "2018.03.30"]
[Round "5"]
[White "Mujumdar, Sameer"]
[Black "Hua, Eugene"]
[Result "1/2-1/2"]
[ECO "B49"]
[WhiteElo "2092"]
[BlackElo "2314"]
[PlyCount "37"]
[EventDate "2018.03.??"]
[EventType "swiss"]
[EventRounds "9"]
[EventCountry "USA"]
[TimeControl "5400+30"]

1. e4 c5 2. Nf3 e6 3. d4 cxd4 4. Nxd4 Nc6 5. Nc3 Qc7 6. Be3 a6 7. Be2 Nf6 8.
O-O Be7 9. f4 d6 10. Qe1 O-O 11. Qg3 Nxd4 12. Bxd4 b5 13. a3 Bb7 14. Bd3 Rad8
15. Rae1 d5 16. e5 Ne4 17. Qe3 Rd7 18. Ne2 Qc6 19. c3 1/2-1/2

[Event "12th Philadelphia Open"]
[Site "Philadelphia"]
[Date "2018.03.30"]
[Round "5"]
[White "Niemann, Hans"]
[Black "Balakrishnan, Praveen"]
[Result "0-1"]
[ECO "A08"]
[WhiteElo "2302"]
[BlackElo "2405"]
[PlyCount "78"]
[EventDate "2018.03.??"]
[EventType "swiss"]
[EventRounds "9"]
[EventCountry "USA"]
[TimeControl "5400+30"]

1. Nf3 d5 2. g3 c5 3. Bg2 Nf6 4. O-O e6 5. c4 d4 6. b4 cxb4 7. a3 Nc6 8. Qa4
Nd7 9. axb4 Bxb4 10. Nxd4 Nxd4 11. Qxb4 Nxe2+ 12. Kh1 Nxc1 13. Rxc1 Qe7 14.
Qxe7+ Kxe7 15. Nc3 Rd8 16. Rcb1 Ne5 17. Bxb7 Bxb7+ 18. Rxb7+ Kf8 19. c5 Rxd2
20. Kg1 a5 21. Ne4 Rc2 22. Ra4 h6 23. Rb5 f5 24. Nd6 g5 25. h3 h5 26. Rbxa5
Rxa5 27. Rxa5 Rc1+ 28. Kg2 g4 29. Ra8+ Kg7 30. Ra7+ Kg6 31. hxg4 hxg4 32. Ra3
Nf3 33. Rxf3 gxf3+ 34. Kxf3 Rxc5 35. g4 Kf6 36. gxf5 exf5 37. Ne8+ Kf7 38. Nd6+
Ke7 39. Nb7 Rb5 0-1

[Event "12th Philadelphia Open"]
[Site "Philadelphia"]
[Date "2018.03.30"]
[Round "5"]
[White "Pedersen, Christian Kyndel"]
[Black "Katz, Alexander"]
[Result "1-0"]
[ECO "E01"]
[WhiteElo "2405"]
[BlackElo "2347"]
[PlyCount "99"]
[EventDate "2018.03.??"]
[EventType "swiss"]
[EventRounds "9"]
[EventCountry "USA"]
[TimeControl "5400+30"]

1. d4 Nf6 2. c4 e6 3. g3 d5 4. Nf3 Be7 5. Bg2 O-O 6. O-O dxc4 7. Qc2 b6 8. Bg5
Bb7 9. Bxf6 Bxf6 10. Ng5 Bxg5 11. Bxb7 Nd7 12. Bxa8 Qxa8 13. Qxc4 c5 14. Nc3
Bf6 15. dxc5 Nxc5 16. Rac1 a5 17. Rfd1 Qb7 18. b3 h5 19. Na4 Ne4 20. Qc6 Qxc6
21. Rxc6 b5 22. Nc5 Nc3 23. Rd2 Nb1 24. Rd3 Ra8 25. Ne4 b4 26. Nxf6+ gxf6 27.
e3 Ra7 28. Rdd6 Nc3 29. a4 f5 30. Ra6 Rc7 31. Rxa5 Ne4 32. Rd4 h4 33. gxh4 Rc1+
34. Kg2 Rc2 35. Rxe4 fxe4 36. Rb5 f5 37. Rxb4 Ra2 38. Kg3 Kf7 39. Rb5 Kf6 40.
a5 e5 41. Rb6+ Kf7 42. a6 Ra1 43. Rb7+ Kf6 44. a7 Rg1+ 45. Kh3 Ra1 46. b4 f4
47. b5 Kf5 48. b6 fxe3 49. fxe3 Ra6 50. Rf7+ 1-0

[Event "12th Philadelphia Open"]
[Site "Philadelphia"]
[Date "2018.03.30"]
[Round "5"]
[White "Popilski, Gil"]
[Black "Mulyar, Michael"]
[Result "1/2-1/2"]
[ECO "D45"]
[WhiteElo "2502"]
[BlackElo "2396"]
[PlyCount "59"]
[EventDate "2018.03.??"]
[EventType "swiss"]
[EventRounds "9"]
[EventCountry "USA"]
[TimeControl "5400+30"]

1. d4 d5 2. c4 c6 3. Nf3 Nf6 4. Nc3 e6 5. e3 Nbd7 6. Qc2 Bd6 7. Be2 O-O 8. O-O
dxc4 9. Bxc4 b5 10. Be2 Bb7 11. a3 a6 12. b4 a5 13. Rb1 axb4 14. axb4 Qe7 15.
Qb3 e5 16. dxe5 Nxe5 17. Nd4 g6 18. h3 Rfc8 19. Rd1 Ba6 20. Bd2 Nc4 21. Be1 h5
22. Na2 Ne4 23. Nc3 Nf6 24. Na2 Ne4 25. Bf3 Qe5 26. Bxe4 Qxe4 27. Qd3 Qxd3 28.
Rxd3 Bb7 29. Nc3 Re8 30. Rdd1 1/2-1/2

[Event "12th Philadelphia Open"]
[Site "Philadelphia"]
[Date "2018.03.30"]
[Round "5"]
[White "Shabalov, Alexander"]
[Black "Turgut, Tansel"]
[Result "1-0"]
[ECO "C44"]
[WhiteElo "2568"]
[BlackElo "2265"]
[PlyCount "109"]
[EventDate "2018.03.??"]
[EventType "swiss"]
[EventRounds "9"]
[EventCountry "USA"]
[TimeControl "5400+30"]

1. e4 e5 2. Nf3 Nc6 3. c3 Nf6 4. d4 Nxe4 5. d5 Bc5 6. dxc6 Bxf2+ 7. Ke2 Bb6 8.
Qd5 Nf2 9. Rg1 bxc6 10. Qxe5+ Kf8 11. Nd4 Ng4 12. Qf4 d5 13. Kd1 c5 14. Nf3 c4
15. Nd4 h6 16. Be2 g5 17. Qg3 h5 18. h3 h4 19. Qe1 Nh6 20. Rf1 Kg7 21. Nc6 Qd6
22. Bxg5 Qxc6 23. Bf6+ Qxf6 24. Rxf6 Kxf6 25. Qxh4+ Kg7 26. g4 f6 27. Qg3 Re8
28. Na3 Bd7 29. Nc2 Ba4 30. Qg2 d4 31. cxd4 Bxd4 32. Kc1 Bb6 33. Bxc4 Rad8 34.
b3 Bd7 35. Kb2 Be6 36. g5 Nf5 37. gxf6+ Kxf6 38. Bxe6 Rxe6 39. Rf1 Re5 40. h4
Rf8 41. h5 Rf7 42. Qg6+ Ke7 43. h6 Nxh6 44. Rd1 Re6 45. Qg5+ Rff6 46. a4 Nf7
47. Qd5 Rd6 48. Re1+ Rfe6 49. Rxe6+ Rxe6 50. Nb4 Ne5 51. a5 c6 52. axb6 cxd5
53. bxa7 Nd3+ 54. Nxd3 Ra6 55. Nb4 1-0

[Event "12th Philadelphia Open"]
[Site "Philadelphia"]
[Date "2018.03.30"]
[Round "5"]
[White "Slade, Theodore"]
[Black "Homa, Seth"]
[Result "1-0"]
[ECO "D35"]
[WhiteElo "2020"]
[BlackElo "2247"]
[PlyCount "65"]
[EventDate "2018.03.??"]
[EventType "swiss"]
[EventRounds "9"]
[EventCountry "USA"]
[TimeControl "5400+30"]

1. d4 d5 2. c4 e6 3. Nc3 Nf6 4. cxd5 exd5 5. Bg5 c6 6. e3 Be7 7. Bd3 Nbd7 8.
Qc2 h6 9. Bh4 Nh5 10. Bxe7 Qxe7 11. Nge2 Nb6 12. O-O O-O 13. Rad1 Bg4 14. h3
Bxe2 15. Qxe2 Nf6 16. f3 c5 17. dxc5 Qxc5 18. Nb5 Rfe8 19. Nd4 Rac8 20. Rc1
Qxc1 21. Rxc1 Rxc1+ 22. Kf2 Ra1 23. a3 Rc8 24. Nb3 Rh1 25. Qd2 Nc4 26. Qc3 Re8
27. Bxc4 Rc8 28. Nd2 dxc4 29. Nf1 b5 30. Qd4 a6 31. e4 Nh7 32. Ng3 c3 33. bxc3
1-0

[Event "12th Philadelphia Open"]
[Site "Philadelphia"]
[Date "2018.03.30"]
[Round "5"]
[White "Wegerle, Joerg"]
[Black "Kretchetov, Alexandre"]
[Result "1/2-1/2"]
[ECO "D00"]
[WhiteElo "2424"]
[BlackElo "2244"]
[PlyCount "48"]
[EventDate "2018.03.??"]
[EventType "swiss"]
[EventRounds "9"]
[EventCountry "USA"]
[TimeControl "5400+30"]

1. d4 d5 2. Bg5 f6 3. Bh4 Nh6 4. f3 c5 5. dxc5 Qa5+ 6. Qd2 Qxd2+ 7. Nxd2 e5 8.
e4 d4 9. Nb3 a5 10. a4 Na6 11. Bxa6 Rxa6 12. Ne2 Nf7 13. Nec1 Nd8 14. Kd1 Nc6
15. Nd3 Be6 16. Be1 Be7 17. Bd2 O-O 18. Rf1 g6 19. g4 Kh8 20. Rg1 Bc4 21. Nbc1
Raa8 22. b3 Ba6 23. Ra2 Rad8 24. Rb2 Rf7 1/2-1/2

[Event "12th Philadelphia Open"]
[Site "Philadelphia"]
[Date "2018.03.30"]
[Round "5"]
[White "Yanayt, Eugene"]
[Black "Deshpande, Neil"]
[Result "1-0"]
[ECO "A17"]
[WhiteElo "2127"]
[BlackElo "1717"]
[PlyCount "79"]
[EventDate "2018.03.??"]
[EventType "swiss"]
[EventRounds "9"]
[EventCountry "USA"]
[TimeControl "5400+30"]

1. c4 Nf6 2. Nc3 d5 3. cxd5 Nxd5 4. g3 g6 5. Bg2 Nxc3 6. bxc3 Bg7 7. Rb1 Nd7 8.
h4 Nb6 9. Qc2 c6 10. h5 Be6 11. d3 Qd7 12. Nf3 Bg4 13. h6 Bf6 14. Ng5 e5 15.
Qb3 Bxg5 16. Bxg5 Qf5 17. Be3 Qe6 18. Qa3 Kd7 19. f3 Bf5 20. g4 Rhb8 21. gxf5
gxf5 22. c4 Nc8 23. Bh3 Ne7 24. Rg1 Qf6 25. Bg5 Qd6 26. Bxe7 Kxe7 27. Qxd6+
Kxd6 28. Bxf5 b6 29. Kd2 Rg8 30. Rg7 Ke7 31. Rbg1 Rh8 32. R1g5 c5 33. Be4 Rad8
34. Rxe5+ Kf6 35. Rf5+ Ke6 36. Rgxf7 Rxd3+ 37. Bxd3 Rd8 38. R5f6+ Ke5 39. f4+
Kd4 40. e3# 1-0

[Event "12th Philadelphia Open"]
[Site "Philadelphia"]
[Date "2018.03.30"]
[Round "5"]
[White "Yanovsky, Vlad"]
[Black "Peng, Shunkai"]
[Result "1-0"]
[ECO "B90"]
[WhiteElo "2112"]
[BlackElo "2291"]
[PlyCount "125"]
[EventDate "2018.03.??"]
[EventType "swiss"]
[EventRounds "9"]
[EventCountry "USA"]
[TimeControl "5400+30"]

1. e4 c5 2. Nf3 d6 3. d4 cxd4 4. Nxd4 Nf6 5. Nc3 a6 6. h3 g6 7. g4 Bg7 8. Bg2
h5 9. g5 Nfd7 10. Be3 Nc6 11. O-O O-O 12. Kh1 Nb6 13. Nde2 Rb8 14. f4 Nc4 15.
Bc1 e6 16. b3 Qa5 17. e5 Na3 18. Bxa3 Qxa3 19. Qxd6 Qxd6 20. exd6 Bd7 21. Rad1
Rfc8 22. Na4 b6 23. c3 Na5 24. Nb2 Bxc3 25. Nxc3 Rxc3 26. Rc1 Rbc8 27. Rxc3
Rxc3 28. Rd1 Kf8 29. Nd3 Nc6 30. Nf2 Ke8 31. Rd2 Kd8 32. Ne4 Rc1+ 33. Kh2 Nb4
34. Nf6 a5 35. a3 Rc2 36. Ne4 Rxd2 37. Nxd2 Nc2 38. a4 Nd4 39. Be4 b5 40. axb5
Bxb5 41. Bf3 Kd7 42. Bd1 Bd3 43. Kg3 Kxd6 44. Kf2 Kd5 45. Ke3 Bf1 46. Nxf1 e5
47. fxe5 Kxe5 48. Nd2 Nf5+ 49. Kd3 Kf4 50. Nc4 Kg3 51. Nxa5 Kxh3 52. b4 Kg3 53.
b5 Nd6 54. b6 h4 55. Bb3 Kf4 56. Bd5 Ke5 57. Bh1 Ke6 58. Nc4 Kd7 59. Nxd6 Kxd6
60. Kd4 h3 61. b7 Kc7 62. Ke5 h2 63. Kf6 1-0

[Event "12th Philadelphia Open"]
[Site "Philadelphia"]
[Date "2018.03.30"]
[Round "5.1"]
[White "Sevian, Samuel"]
[Black "Azarov, Sergei"]
[Result "1-0"]
[ECO "C93"]
[WhiteElo "2619"]
[BlackElo "2570"]
[PlyCount "91"]
[EventDate "2018.03.??"]
[EventType "swiss"]
[EventRounds "9"]
[EventCountry "USA"]
[TimeControl "5400+30"]
[WhiteClock "0:11:42"]
[BlackClock "0:06:36"]

1. e4 {[%emt 0:00:00]} e5 {[%emt 0:00:00]} 2. Nf3 {[%emt 0:00:00]} Nc6 {
[%emt 0:00:00]} 3. Bb5 {[%emt 0:00:00]} a6 {[%emt 0:00:00]} 4. Ba4 {[%emt 0:00:
00]} Nf6 {[%emt 0:00:00]} 5. O-O {[%emt 0:00:00]} Be7 {[%emt 0:00:00]} 6. Re1 {
[%emt 0:00:00]} b5 {[%emt 0:00:00]} 7. Bb3 {[%emt 0:00:00]} d6 {[%emt 0:00:00]}
8. c3 {[%emt 0:00:00]} O-O {[%emt 0:00:00]} 9. h3 {[%emt 0:00:00]} h6 {[%emt 0:
00:00]} 10. d4 {[%emt 0:00:00]} Re8 {[%emt 0:00:00]} 11. Nbd2 {[%emt 0:00:00]}
Bf8 {[%emt 0:00:00]} 12. Bc2 {[%emt 0:00:00]} Bb7 {[%emt 0:00:00]} 13. a3 {
[%emt 0:00:00]} Qd7 {[%emt 0:03:24]} 14. b4 {[%emt 0:08:17]} d5 {[%emt 0:15:59]
} 15. dxe5 {[%emt 0:04:22]} Nxe5 {[%emt 0:05:02]} 16. Nxe5 {[%emt 0:00:35]}
Rxe5 {[%emt 0:00:30]} 17. Nf3 {[%emt 0:20:28]} Re7 {[%emt 0:12:16]} 18. e5 {
[%emt 0:04:03]} Ne4 {[%emt 0:00:49]} 19. Be3 {[%emt 0:02:13]} a5 {[%emt 0:28:
14]} 20. Bd4 {[%emt 0:03:26]} Ree8 {[%emt 0:03:41]} 21. Qd3 {[%emt 0:07:30]} g6
{[%emt 0:02:35]} 22. h4 {[%emt 0:03:08]} h5 {[%emt 0:07:26]} 23. Ng5 {[%emt 0:
01:51]} Nxg5 {[%emt 0:03:24]} 24. hxg5 {[%emt 0:00:41]} Qc6 {[%emt 0:00:30]}
25. Qe2 {[%emt 0:05:13]} Bc8 {[%emt 0:07:21]} 26. Bd3 {[%emt 0:00:50]} Bd7 {
[%emt 0:01:10]} 27. f4 {[%emt 0:05:52]} Bg4 {[%emt 0:01:43]} 28. Bxb5 {[%emt 0:
01:31]} Qe6 {[%emt 0:00:40]} 29. Qf2 {[%emt 0:01:11]} c6 {[%emt 0:01:30]} 30.
Bd3 {[%emt 0:02:59]} Bf5 {[%emt 0:01:44]} 31. Qc2 {[%emt 0:01:43]} Bxd3 {
[%emt 0:01:28]} 32. Qxd3 {[%emt 0:00:30]} c5 {[%emt 0:01:34]} 33. bxc5 {
[%emt 0:02:16]} Rac8 {[%emt 0:00:30]} 34. Rf1 {[%emt 0:07:24]} Qf5 {[%emt 0:02:
22]} 35. Qxf5 {[%emt 0:07:46]} gxf5 {[%emt 0:00:30]} 36. Rfb1 {[%emt 0:00:44]}
Bxc5 {[%emt 0:00:37]} 37. Rb5 {[%emt 0:00:58]} Bxd4+ {[%emt 0:01:14]} 38. cxd4
{[%emt 0:00:30]} Rc4 {[%emt 0:01:44]} 39. Rd1 {[%emt 0:01:10]} Rc2 {[%emt 0:01:
31]} 40. Rdb1 {[%emt 0:01:27]} Kg7 {[%emt 0:00:31]} 41. Rxd5 {[%emt 0:02:08]}
h4 {[%emt 0:00:00]} 42. Rb7 {[%emt 0:00:00]} Rec8 {[%emt 0:00:00]} 43. e6 {
[%emt 0:00:00]} h3 {[%emt 0:00:00]} 44. Rxf7+ {[%emt 0:00:00]} Kg8 {[%emt 0:00:
00]} 45. Kh2 {[%emt 0:00:02]} hxg2 {[%emt 0:00:00]} 46. Rc5 {[%emt 0:00:30]}
1-0

[Event "12th Philadelphia Open"]
[Site "Philadelphia"]
[Date "2018.03.30"]
[Round "5.2"]
[White "Checa, Nicolas"]
[Black "Stripunsky, Alexander"]
[Result "1/2-1/2"]
[ECO "A41"]
[WhiteElo "2485"]
[BlackElo "2538"]
[PlyCount "123"]
[EventDate "2018.03.??"]
[EventType "swiss"]
[EventRounds "9"]
[EventCountry "USA"]
[TimeControl "5400+30"]
[WhiteClock "0:17:46"]
[BlackClock "0:06:49"]

1. d4 {[%emt 0:00:00]} d6 {[%emt 0:00:00]} 2. c4 {[%emt 0:00:00]} g6 {[%emt 0:
00:00]} 3. Nf3 {[%emt 0:00:00]} Bg7 {[%emt 0:00:00]} 4. Nc3 {[%emt 0:00:00]} e5
{[%emt 0:00:00]} 5. e4 {[%emt 0:00:00]} exd4 {[%emt 0:00:00]} 6. Nxd4 {[%emt 0:
00:00]} Nc6 {[%emt 0:00:00]} 7. Be3 {[%emt 0:00:00]} Nge7 {[%emt 0:00:00]} 8.
Be2 {[%emt 0:00:00]} O-O {[%emt 0:00:00]} 9. O-O {[%emt 0:00:00]} f5 {[%emt 0:
00:00]} 10. Nxc6 {[%emt 0:00:00]} bxc6 {[%emt 0:00:00]} 11. Bd4 {[%emt 0:01:28]
} Bxd4 {[%emt 0:00:00]} 12. Qxd4 {[%emt 0:00:33]} c5 {[%emt 0:00:00]} 13. Qd2 {
[%emt 0:00:47]} Be6 {[%emt 0:01:58]} 14. Rad1 {[%emt 0:06:30]} fxe4 {[%emt 0:
15:52]} 15. Nxe4 {[%emt 0:02:10]} Bf5 {[%emt 0:10:52]} 16. Bf3 {[%emt 0:02:24]}
Bxe4 {[%emt 0:00:47]} 17. Bxe4 {[%emt 0:00:30]} Rb8 {[%emt 0:00:31]} 18. Qc3 {
[%emt 0:01:13]} h6 {[%emt 0:11:50]} 19. Rfe1 {[%emt 0:02:00]} Qd7 {[%emt 0:04:
24]} 20. b3 {[%emt 0:05:53]} Nf5 {[%emt 0:01:01]} 21. Qa5 {[%emt 0:11:01]} Qg7
{[%emt 0:00:49]} 22. Qxa7 {[%emt 0:01:38]} Nd4 {[%emt 0:00:39]} 23. Qa5 {
[%emt 0:00:40]} g5 {[%emt 0:08:09]} 24. Qd2 {[%emt 0:01:53]} Qf6 {[%emt 0:01:
58]} 25. Re3 {[%emt 0:03:11]} Kg7 {[%emt 0:03:45]} 26. Rde1 {[%emt 0:01:35]} c6
{[%emt 0:00:56]} 27. Bb1 {[%emt 0:01:23]} Rf7 {[%emt 0:01:45]} 28. f3 {[%emt 0:
01:39]} h5 {[%emt 0:05:45]} 29. Qd3 {[%emt 0:03:52]} Rh8 {[%emt 0:02:38]} 30.
Re8 {[%emt 0:02:34]} Rh6 {[%emt 0:01:20]} 31. Rc8 {[%emt 0:07:58]} Re7 {
[%emt 0:03:04]} 32. Rxe7+ {[%emt 0:00:56]} Qxe7 {[%emt 0:00:30]} 33. Qe4 {
[%emt 0:00:30]} Qxe4 {[%emt 0:02:14]} 34. Bxe4 {[%emt 0:00:59]} Re6 {[%emt 0:
00:30]} 35. Kf1 {[%emt 0:01:49]} h4 {[%emt 0:04:16]} 36. a4 {[%emt 0:12:32]}
Nxb3 {[%emt 0:02:33]} 37. Bxc6 {[%emt 0:00:30]} Re3 {[%emt 0:01:29]} 38. Bd5 {
[%emt 0:08:04]} Nc1 {[%emt 0:04:18]} 39. Rc7+ {[%emt 0:02:45]} Kf8 {[%emt 0:03:
34]} 40. Rb7 {[%emt 0:04:04]} Nd3 {[%emt 0:01:45]} 41. Rb1 {[%emt 0:00:30]} Nb4
{[%emt 0:00:32]} 42. Ra1 {[%emt 0:05:05]} Nc2 {[%emt 0:01:08]} 43. Rc1 {
[%emt 0:07:58]} Nb4 {[%emt 0:02:41]} 44. Be4 {[%emt 0:03:24]} Ra3 {[%emt 0:01:
03]} 45. Rd1 {[%emt 0:00:40]} Ke7 {[%emt 0:02:20]} 46. Ke2 {[%emt 0:01:29]}
Rxa4 {[%emt 0:01:10]} 47. f4 {[%emt 0:00:00]} Na2 {[%emt 0:00:00]} 48. Re1 {
[%emt 0:00:00]} Kf6 {[%emt 0:00:00]} 49. fxg5+ {[%emt 0:00:00]} Kxg5 {[%emt 0:
00:00]} 50. Bd3 {[%emt 0:00:00]} Nb4 {[%emt 0:00:00]} 51. Be4 {[%emt 0:00:00]}
Kf4 {[%emt 0:00:00]} 52. Kd2 {[%emt 0:00:00]} Ra3 {[%emt 0:00:00]} 53. Bb1 {
[%emt 0:00:00]} Rb3 {[%emt 0:00:00]} 54. Be4 {[%emt 0:00:00]} Kg5 {[%emt 0:00:
00]} 55. Rf1 {[%emt 0:00:00]} h3 {[%emt 0:00:00]} 56. gxh3 {[%emt 0:00:00]}
Rxh3 {[%emt 0:00:00]} 57. Rf5+ {[%emt 0:00:00]} Kg4 {[%emt 0:00:00]} 58. Rf6 {
[%emt 0:00:00]} Rxh2+ {[%emt 0:00:00]} 59. Kc3 {[%emt 0:00:00]} Rh3+ {[%emt 0:
00:14]} 60. Kb2 {[%emt 0:00:00]} Nd3+ {[%emt 0:04:44]} 61. Kc2 {[%emt 0:00:00]}
Nb4+ {[%emt 0:01:07]} 62. Kb2 {[%emt 0:00:00]} 1/2-1/2